[Event "FIDE WY-U16 Olympiad 2022"]
[Site "Nakhchivan"]
[Date "2022.10.03"]
[Round "2.32"]
[White "Rzali, Leyla"]
[Black "Nel, Hayley"]
[Result "1-0"]
[ECO "C60"]
[WhiteElo "1451"]
[BlackElo "1191"]
[Annotator "NA RC COMBH"]
[PlyCount "85"]
[EventDate "2022.10.02"]
[EventType "team-tourn"]
[EventCountry "AZE"]
[SourceTitle "playchess.com"]
[Source "ChessBase"]
[SourceQuality "1"]
[WhiteTeam "Azerbaijan"]
[BlackTeam "South Africa"]
[WhiteTeamCountry "AZE"]
[BlackTeamCountry "RSA"]
[TimeControl "40/5400+30:1800+30"]

1. e4 {[%emt 0:00:02]} e5 {[%emt 0:00:07]} 2. Nf3 {[%emt 0:00:10]} Nc6 {[%emt 0:00:10]} 3. Bb5 {[%emt 0:00:09]} g6 {[%emt 0:00:21]} 4. O-O {[%emt 0:00:25]} Bg7 {[%emt 0:00:11]} 5. Re1 {[%emt 0:00:22]} Nge7 {[%emt 0:00:50]} 6. c3 {[%emt 0:00:28]} O-O {[%emt 0:01:06]} 7. d4 {[%emt 0:00:23]} exd4 {[%emt 0:02:24]} 8. cxd4 {[%emt 0:00:11]} a6 {[%emt 0:00:48]} 9. Ba4 {[%emt 0:00:27]} b5 {[%emt 0:01:25]} 10. Bb3 {[%emt 0:00:31]} d5 {[%emt 0:04:41]} 11. e5 {[%emt 0:02:01]} Bg4 {[%emt 0:00:25]} 12. Be3 {[%emt 0:01:26]} Nf5 {[%emt 0:09:16]} 13. Nc3 {[%emt 0:01:56]} Bxf3 {[%emt 0:02:25]} 14. Qxf3 {[%emt 0:03:51]} Ncxd4 {[%emt 0:03:10]} 15. Bxd4 {[%emt 0:00:56]} Nxd4 {[%emt 0:00:13]} 16. Qxd5 {[%emt 0:00:45]} Nxb3 {[%emt 0:01:28]} 17. axb3 {[%emt 0:01:49]} b4 {[%emt 0:02:37]} 18. Qxd8 {[%emt 0:02:01]} Rfxd8 {[%emt 0:00:13]} 19. Na2 {[%emt 0:02:13]} a5 {[%emt 0:03:25]} 20. Re2 {[%emt 0:02:55]} Re8 {[%emt 0:18:42]} 21. f4 {[%emt 0:03:10]} Rad8 {[%emt 0:02:51]} 22. Rc1 {[%emt 0:02:51]} Re7 {[%emt 0:08:11]} 23. Rc5 {[%emt 0:01:35]} Ra8 {[%emt 0:04:06]} 24. Nc1 {[%emt 0:03:38]} Bf8 {[%emt 0:06:36]} 25. Rec2 {[%emt 0:03:12]} Ra7 {[%emt 0:00:51]} 26. Rd5 {[%emt 0:00:26]} Ra8 {[%emt 0:08:40]} 27. Nd3 {[%emt 0:02:02]} Bh6 {[%emt 0:15:20]} 28. g3 {[%emt 0:01:17]} Kg7 {[%emt 0:00:44]} 29. g4 {[%emt 0:00:22]} Kf8 {[%emt 0:00:31]} 30. g5 {[%emt 0:00:40]} Bg7 {[%emt 0:00:10]} 31. Rcc5 {[%emt 0:00:23]} Ke8 {[%emt 0:00:32]} 32. Rxa5 {[%emt 0:01:42]} Rxa5 {[%emt 0:00:21]} 33. Rxa5 {[%emt 0:00:02]} Rd7 {[%emt 0:00:16]} 34. Ra8+ {[%emt 0:00:20]} Ke7 {[%emt 0:00:12]} 35. Nxb4 {[%emt 0:00:58]} Rd1+ {[%emt 0:00:22]} 36. Kf2 {[%emt 0:02:12]} Rd2+ {[%emt 0:00:39]} 37. Ke3 {[%emt 0:01:13]} Rxh2 {[%emt 0:00:29]} 38. Nd5+ {[%emt 0:00:24]} Ke6 {[%emt 0:01:53]} 39. Nxc7+ {[%emt 0:00:24]} Kd7 {[%emt 0:01:44]} 40. Ne8 {[%emt 0:01:15]} Bf8 {[%emt 0:00:17]} 41. Nf6+ {[%emt 0:30:03]} Ke6 {[%emt 0:31:16]} 42. Rxf8 {[%emt 0:00:16]} Rh3+ {[%emt 0:00:11]} 43. Ke4 {[%emt 0:00:08]} 1-0

[Event "FIDE WY-U16 Olympiad 2022"]
[Site "Nakhchivan"]
[Date "2022.10.03"]
[Round "2.33"]
[White "Abdel Raouf, Zyad"]
[Black "Seyid, Huseyn"]
[Result "0-1"]
[ECO "B40"]
[WhiteElo "1609"]
[BlackElo "2097"]
[Annotator "TA"]
[PlyCount "106"]
[EventDate "2022.10.02"]
[EventType "team-tourn"]
[EventCountry "AZE"]
[SourceTitle "playchess.com"]
[Source "ChessBase"]
[SourceQuality "1"]
[WhiteTeam "Egypt"]
[BlackTeam "Azerbaijan"]
[WhiteTeamCountry "EGY"]
[BlackTeamCountry "AZE"]
[TimeControl "40/5400+30:1800+30"]

{[%evp 10,106,19,0,0,0,0,0,0,-46,-45,-40,-35,-53,-59,-74,-32,-63,-43,-90,-94,-111,-114,-144,-127,-244,-174,-268,-234,-295,-298,-258,-299,-273,-271,-427,-418,-572,-574,-529,-414,-413,-408,-581,-573,-547,-510,-29984,-548,-539,-525,-511,-502,-507,-469,-554,-231,-225,-201,-503,-499,-604,-562,-1408,-1337,-1247,-1188,-943,-589,-1031,-876,-1518,-1159,-29988,-9405,-3353,-1654,-29970,-29972,-29970,-29973,-29973,-29974,-29976,-29977,-29975,-29976,-29980,-29980,-29977,-29978,-29983,-29984,-29984,-29985,-29985,-29986,-29987,-29988]} 1. e4 {[%emt 0:00:03]} c5 {[%emt 0:00:04]} 2. Nf3 {[%emt 0:00:12]} e6 {[%emt 0:00:05]} 3. d4 {[%emt 0:00:07]} cxd4 {[%emt 0:00:05]} 4. Nxd4 {[%emt 0:00:04]} Nf6 {[%emt 0:00:03]} 5. Nc3 {[%emt 0:00:22]} Nc6 {[%emt 0:00:04]} 6. f3 {[%emt 0:02:42]} Bb4 {[%emt 0:02:54] B45: Sicilian Four Knights.} 7. a3 {[%emt 0:06:12]} Bxc3+ {[%emt 0:00:31]} 8. bxc3 {[%emt 0:00:05]} d5 {[%emt 0:01:34] The position is equal.} 9. Bb5 {[%emt 0:08:49]} (9. Nxc6 $11 bxc6 10. Qd4) 9... Bd7 $15 {[%emt 0:03:37] [#]} 10. Bxc6 $146 {[%emt 0:06:03]} ({Predecessor:} 10. exd5 Nxd5 11. Nxc6 bxc6 12. c4 Nf6 13. Ba4 Qa5+ 14. c3 Qxc3+ 15. Bd2 Qxc4 16. Bb4 {½-½ (38) Zhuravlev,A (1672)-Abzalov,L Ufa 2012}) 10... Bxc6 {[%emt 0:00:31]} 11. e5 {[%emt 0:01:59]} Nd7 {[%emt 0:00:34][%cal Bf6d7,Bd7c5,Bc5e4][%mdl 32]} 12. f4 {[%emt 0:04:41]} Nc5 {[%emt 0:01:39]} 13. Qf3 {[%emt 0:08:24]} g6 {[%emt 0:02:43]} 14. Bd2 {[%emt 0:15:29]} (14. O-O $15 {is more appropriate.}) 14... Ne4 $17 {[%emt 0:00:54] Black keeps a firm grip on the game.} 15. Nxc6 {[%emt 0:06:10]} bxc6 {[%emt 0:00:15][%cal Bb7c6,Bc6c5][%mdl 32]} 16. Rb1 {[%emt 0:01:30] Inhibits Qb6.} Rb8 {[%emt 0:02:31] Black is more active.} 17. Rb4 {[%emt 0:03:34]} (17. Ke2 $17) 17... a5 {[%emt 0:01:01][%cal Ba7a5,Ba5a4][%mdl 32]} 18. Rb3 {[%emt 0:01:23]} (18. Rxb8 $142 Qxb8 19. Ke2) 18... a4 {[%emt 0:00:10]} 19. Rb4 {[%emt 0:01:58]} c5 {[%emt 0:00:07]} 20. Rxb8 {[%emt 0:00:34]} Qxb8 {[%emt 0:00:01]} 21. Qd1 {[%emt 0:05:39] Inhibits Qb1.} Qb5 {[%emt 0:00:47]} 22. Rf1 {[%emt 0:03:18]} (22. Bc1 $142) 22... Ke7 {[%emt 0:03:15]} 23. Qc1 {[%emt 0:03:28]} Rb8 {[%emt 0:00:57]} 24. Rf3 {[%emt 0:01:30]} Qc4 {[%emt 0:01:21] Strongly threatening ...Qa2.} 25. Qa1 {[%emt 0:01:29] Against Qa2} h5 {[%emt 0:01:13]} 26. Rd3 {[%emt 0:02:09]} (26. Kd1 $142) 26... Nxd2 $19 {[%emt 0:00:33]} 27. Rxd2 {[%emt 0:00:28]} Qxf4 {[%emt 0:00:05][%mdl 4096] Endgame KQR-KQR} 28. g3 {[%emt 0:02:13] [#]} (28. Re2 $19) 28... Qxe5+ {[%emt 0:00:43]} (28... Qe3+ $142 29. Re2 Qg1+ 30. Kd2 Qxa1 31. Re1 Qxa3 32. Kd3 d4 33. Ke2 Qxc3 34. Kf2 Rb2 35. Rc1 Qe3+ 36. Kg2 Qxc1 37. Kh3 Rxc2 38. g4 Qe3+ 39. Kh4 Rxh2#) 29. Re2 {[%emt 0:00:02]} Qf6 {[%emt 0:01:28]} 30. Rf2 {[%emt 0:00:50]} Qg5 {[%emt 0:00:26]} 31. Rf3 {[%emt 0:00:56]} Qe5+ {[%emt 0:01:31]} 32. Kd2 {[%emt 0:00:33]} Qe4 {[%emt 0:00:17]} (32... d4 $142 33. Qf1 f6) 33. Qf1 {[%emt 0:00:32]} f5 {[%emt 0:02:54]} 34. Re3 $2 {[%emt 0:00:53]} (34. Rf4 Qe5 35. Rxa4) 34... Qc4 {[%emt 0:00:38]} 35. Qe1 {[%emt 0:00:45]} d4 {[%emt 0:00:19]} 36. cxd4 {[%emt 0:00:41]} cxd4 {[%emt 0:00:11]} 37. Rd3 {[%emt 0:00:24]} Rc8 {[%emt 0:00:13][%csl Gc8][%cal Rc4c2]} 38. Qb1 {[%emt 0:00:36]} Rc7 {[%emt 0:01:25] White must now prevent ...e5.} 39. Qb2 {[%emt 0:01:42]} e5 {[%emt 0:01:13]} 40. Kd1 {[%emt 0:00:18]} Kf7 {[%emt 0:01:31] ( -> ...e4)} 41. h4 {[%emt 0:30:57]} Qc6 {[%emt 0:30:57]} (41... e4 $142 42. Rxd4 Qf1+ 43. Kd2 e3+ 44. Kxe3 Re7+ 45. Kd2 Qe1+ 46. Kd3 Qe3+ 47. Kc4 Rc7+ 48. Kb4 Rb7+ 49. Ka5 Rxb2 50. Rb4 Qa7+ 51. Kb5 Rxc2 52. Rc4 Qd7+ 53. Kc5 Qc7+ 54. Kb5 Qxc4+ 55. Kb6 Rb2+ 56. Ka7 Qc7+ 57. Ka8 Qb8#) 42. Kd2 {[%emt 0:01:19] [#]} Qc3+ $3 {[%emt 0:05:06][%mdl 512]} 43. Rxc3 {[%emt 0:00:02]} (43. Qxc3 Rxc3) 43... dxc3+ {[%emt 0:00:00] Black mates.} 44. Qxc3 {[%emt 0:00:12]} Rxc3 {[%emt 0:00:01]} 45. Kxc3 {[%emt 0:00:02] KP-KP} Ke6 {[%emt 0:00:45]} 46. Kc4 {[%emt 0:04:00]} Kd6 {[%emt 0:01:19]} 47. Kd3 {[%emt 0:02:12]} Kc5 {[%emt 0:00:25]} 48. Ke3 {[%emt 0:00:19]} Kc4 {[%emt 0:00:09]} 49. Kd2 {[%emt 0:00:02]} Kd4 {[%emt 0:00:40]} 50. c3+ {[%emt 0:00:26]} Kc4 {[%emt 0:00:04]} 51. Kc2 {[%emt 0:00:10]} e4 {[%emt 0:00:52]} 52. Kd2 {[%emt 0:00:02]} Kb3 {[%emt 0:00:08]} 53. Ke3 {[%emt 0:00:24]} Kxc3 {[%emt 0:00:20] Weighted Error Value: White=0.74/Black=0.49} 0-1

[Event "FIDE WY-U16 Olympiad 2022"]
[Site "Nakhchivan"]
[Date "2022.10.03"]
[Round "2.34"]
[White "Humbatova, Nazli"]
[Black "Fahmi, Adham"]
[Result "1-0"]
[ECO "B32"]
[WhiteElo "1632"]
[BlackElo "1288"]
[Annotator "NA RC COMBH"]
[PlyCount "67"]
[EventDate "2022.10.02"]
[EventType "team-tourn"]
[EventCountry "AZE"]
[SourceTitle "playchess.com"]
[Source "ChessBase"]
[SourceQuality "1"]
[WhiteTeam "Azerbaijan"]
[BlackTeam "Egypt"]
[WhiteTeamCountry "AZE"]
[BlackTeamCountry "EGY"]
[TimeControl "40/5400+30:1800+30"]

1. e4 {[%emt 0:00:01]} c5 {[%emt 0:00:13]} 2. Nf3 {[%emt 0:00:07]} Nc6 {[%emt 0:00:12]} 3. d4 {[%emt 0:00:05]} cxd4 {[%emt 0:00:51]} 4. Nxd4 {[%emt 0:00:08]} e5 {[%emt 0:00:52]} 5. Nb5 {[%emt 0:00:23]} d6 {[%emt 0:00:41]} 6. N1c3 {[%emt 0:00:28]} Be6 {[%emt 0:00:51]} 7. Nd5 {[%emt 0:03:39]} Bxd5 {[%emt 0:02:21]} 8. exd5 {[%emt 0:00:32]} Nce7 {[%emt 0:00:54]} 9. c4 {[%emt 0:01:42]} a6 {[%emt 0:01:37]} 10. Nc3 {[%emt 0:00:13]} g6 {[%emt 0:03:25]} 11. Bd3 {[%emt 0:09:36]} Bg7 {[%emt 0:01:54]} 12. Bc2 {[%emt 0:03:57]} Nf6 {[%emt 0:01:48]} 13. Ba4+ {[%emt 0:04:05]} Nd7 {[%emt 0:00:21]} 14. Ne4 {[%emt 0:03:19]} Qc7 {[%emt 0:11:23]} 15. c5 {[%emt 0:24:14]} Nc8 {[%emt 0:30:14]} 16. c6 {[%emt 0:14:54]} bxc6 {[%emt 0:01:23]} 17. Bxc6 {[%emt 0:03:07]} Rb8 {[%emt 0:01:34]} 18. Qa4 {[%emt 0:02:23]} Ke7 {[%emt 0:10:57]} 19. O-O {[%emt 0:08:58]} Ndb6 {[%emt 0:09:42]} 20. Qxa6 {[%emt 0:01:19]} Na7 {[%emt 0:00:57]} 21. Nxd6 {[%emt 0:07:38]} Nxc6 {[%emt 0:03:51]} 22. Nb5 {[%emt 0:00:13]} Qc8 {[%emt 0:03:55]} 23. Qa3+ {[%emt 0:00:34]} Kd8 {[%emt 0:02:23]} 24. dxc6 {[%emt 0:02:23]} Qxc6 {[%emt 0:01:50]} 25. Rd1+ {[%emt 0:00:22]} Nd7 {[%emt 0:00:38]} 26. Nd6 {[%emt 0:00:26]} Rf8 {[%emt 0:02:28]} 27. Bd2 {[%emt 0:02:27]} Nb6 {[%emt 0:02:20]} 28. Ba5 {[%emt 0:00:17]} Kd7 {[%emt 0:01:23]} 29. Nf5+ {[%emt 0:00:18]} Nd5 {[%emt 0:00:43]} 30. Qe7+ {[%emt 0:00:59]} Kc8 {[%emt 0:00:36]} 31. Nd6+ {[%emt 0:00:16]} Qxd6 32. Qxd6 {[%emt 0:00:07]} Rd8 {[%emt 0:02:06]} 33. Qc6+ {[%emt 0:00:07]} Nc7 {[%emt 0:00:02]} 34. Qxc7# {[%emt 0:00:05]} 1-0

[Event "FIDE WY-U16 Olympiad 2022"]
[Site "Nakhchivan"]
[Date "2022.10.03"]
[Round "2.35"]
[White "Mohamed Mostafa, Omar"]
[Black "Abbasov, Sadig"]
[Result "1/2-1/2"]
[ECO "A06"]
[WhiteElo "1503"]
[BlackElo "1578"]
[Annotator "COMBH"]
[PlyCount "64"]
[EventDate "2022.10.02"]
[EventType "team-tourn"]
[EventCountry "AZE"]
[TimeControl "40/5400+30:1800+30"]

1. Nf3 {[%emt 0:00:27]} d5 {[%emt 0:00:46]} 2. g3 {[%emt 0:00:24]} Nf6 {[%emt 0:00:38]} 3. Bg2 {[%emt 0:00:08]} e6 {[%emt 0:00:43]} 4. O-O {[%emt 0:00:18]} g6 {[%emt 0:00:55]} 5. d3 {[%emt 0:01:08]} Bg7 {[%emt 0:00:19]} 6. Nbd2 {[%emt 0:00:16]} O-O {[%emt 0:00:46]} 7. e4 {[%emt 0:00:29]} c5 {[%emt 0:01:22]} 8. Re1 {[%emt 0:01:13]} Nc6 {[%emt 0:01:28]} 9. c3 {[%emt 0:00:19]} a5 {[%emt 0:02:46]} 10. a4 {[%emt 0:04:16]} b6 {[%emt 0:00:16]} 11. Qc2 {[%emt 0:03:39]} Re8 {[%emt 0:02:05]} 12. Nb1 {[%emt 0:06:40]} Ba6 {[%emt 0:05:49]} 13. Rd1 {[%emt 0:09:05]} Qd7 {[%emt 0:15:38]} 14. Na3 {[%emt 0:20:11]} Red8 {[%emt 0:07:03]} 15. exd5 {[%emt 0:07:44]} Nxd5 {[%emt 0:06:03]} 16. Bg5 {[%emt 0:08:23]} Re8 {[%emt 0:04:13]} 17. Nc4 {[%emt 0:03:45]} h6 {[%emt 0:09:05]} 18. Bd2 {[%emt 0:01:52]} Qc7 {[%emt 0:04:18]} 19. Rac1 {[%emt 0:07:59]} Rad8 {[%emt 0:01:40]} 20. h4 {[%emt 0:03:32]} Rd7 {[%emt 0:07:06]} 21. Bf1 {[%emt 0:05:20]} Red8 {[%emt 0:05:55]} 22. Be1 {[%emt 0:00:19]} Nf6 {[%emt 0:09:10]} 23. Qb3 {[%emt 0:02:08]} Bxc4 {[%emt 0:02:40]} 24. Qxc4 {[%emt 0:01:26]} Ne5 {[%emt 0:02:35]} 25. Nxe5 {[%emt 0:00:02]} Qxe5 {[%emt 0:00:01]} 26. Bd2 {[%emt 0:01:59]} Nh5 {[%emt 0:02:26]} 27. Re1 {[%emt 0:00:58]} Qb8 {[%emt 0:01:20]} 28. Qg4 {[%emt 0:01:37]} Rd5 {[%emt 0:01:03]} 29. Rcd1 {[%emt 0:02:09]} Qd6 {[%emt 0:00:35]} 30. Be3 {[%emt 0:01:07]} Qd7 {[%emt 0:00:37]} 31. Qc4 {[%emt 0:01:11]} Qc7 {[%emt 0:00:56]} 32. Qg4 {[%emt 0:00:36]} c4 {[%emt 0:01:25]} 1/2-1/2

[Event "FIDE WY-U16 Olympiad 2022"]
[Site "Nakhchivan"]
[Date "2022.10.04"]
[Round "3.1"]
[White "Kilic, Eray"]
[Black "Madaminov, Mukhiddin"]
[Result "1/2-1/2"]
[ECO "C80"]
[WhiteElo "2428"]
[BlackElo "2441"]
[Annotator "TA"]
[PlyCount "155"]
[EventDate "2022.10.02"]
[EventType "team-tourn"]
[EventCountry "AZE"]
[SourceTitle "playchess.com"]
[Source "ChessBase"]
[SourceQuality "1"]
[WhiteTeam "Turkey"]
[BlackTeam "Uzbekistan"]
[WhiteTeamCountry "TUR"]
[BlackTeamCountry "UZB"]
[TimeControl "40/5400+30:1800+30"]

{[%evp 20,155,18,0,10,0,0,0,-1,-18,-15,-17,-8,-9,-9,-9,1,-10,-2,-6,-6,-17,-17,-18,-14,-18,-18,-22,-23,-23,-17,-17,-13,-25,-13,-22,-14,-36,-18,-20,-10,-14,-33,-39,-35,-22,-30,-60,-22,-78,0,0,0,-10,0,-81,-79,-82,-81,-73,-77,-74,-75,-77,-68,-102,0,0,0,0,0,0,0,0,0,0,0,0,0,0,0,0,0,0,0,0,0,0,0,0,0,0,0,0,0,0,0,0,0,0,0,0,0,0,0,0,0,0,0,0,0,0,0,0,0,0,0,0,0,0,0,0,0,0,0,0,0,0,0,0,0,0,0,0,0,0,0,0]} 1. e4 {[%emt 0:00:02]} e5 {[%emt 0:01:55]} 2. Nf3 {[%emt 0:00:12]} Nc6 {[%emt 0:00:05]} 3. Bb5 {[%emt 0:00:04]} a6 {[%emt 0:00:15]} 4. Ba4 {[%emt 0:00:05]} Nf6 {[%emt 0:00:05]} 5. O-O {[%emt 0:00:15]} Nxe4 {[%emt 0:00:07]} 6. Re1 {[%emt 0:00:09]} Nc5 {[%emt 0:01:11]} 7. Bxc6 {[%emt 0:00:11]} dxc6 {[%emt 0:00:43]} 8. Nxe5 {[%emt 0:00:50]} Be7 {[%emt 0:03:13]} 9. d4 {[%emt 0:00:20]} Ne6 {[%emt 0:13:17]} 10. Be3 {[%emt 0:00:35]} O-O {[%emt 0:02:19]} 11. Nc3 {[%emt 0:00:58]} f6 {[%emt 0:07:51] C80: Open Ruy Lopez: Sidelines and 9 Nbd2.} 12. Nf3 {[%emt 0:01:10]} Re8 {[%emt 0:01:34]} 13. d5 {[%emt 0:02:44]} cxd5 {[%emt 0:03:11]} 14. Qxd5 {[%emt 0:00:59]} Qxd5 {[%emt 0:06:06]} 15. Nxd5 {[%emt 0:00:06]} Bd8 {[%emt 0:02:31]} 16. Rad1 {[%emt 0:06:03] [#]} Kf7 $146 {[%emt 0:01:17]} ({Predecessor:} 16... b5 17. Nd4 Nxd4 18. Bxd4 Rxe1+ 19. Rxe1 Kf7 20. Bc5 Bf5 21. c3 Be6 22. Nb4 a5 {½-½ (53) Paetzold,O (1097)-McDonald,G (1580) LSS email 2007}) 17. Nd2 $1 {[%emt 0:12:24]} b6 {[%emt 0:05:09]} 18. c4 {[%emt 0:08:46]} Bb7 {[%emt 0:05:18]} 19. Nb3 {[%emt 0:06:49]} a5 {[%emt 0:03:24]} 20. Nd4 {[%emt 0:05:00]} Bxd5 {[%emt 0:04:09]} 21. cxd5 {[%emt 0:00:15]} Nxd4 {[%emt 0:00:10]} 22. Rxd4 {[%emt 0:00:02]} Be7 {[%emt 0:02:31]} 23. Rc1 {[%emt 0:06:53]} Bd6 {[%emt 0:00:07]} 24. Rc6 {[%emt 0:04:05]} Rad8 {[%emt 0:01:46]} 25. g3 {[%emt 0:03:21]} g5 {[%emt 0:05:19]} 26. Rd3 {[%emt 0:07:08]} Kg6 {[%emt 0:02:38]} 27. Kg2 {[%emt 0:04:03]} h5 {[%emt 0:03:28]} 28. Kf3 {[%emt 0:05:45]} g4+ {[%emt 0:06:52]} 29. Kg2 {[%emt 0:01:15]} Rd7 {[%emt 0:02:52][%cal Oh5h4]} 30. h3 {[%emt 0:01:53]} Kf5 {[%emt 0:00:48]} 31. hxg4+ {[%emt 0:01:14]} hxg4 {[%emt 0:00:06]} 32. Rd1 {[%emt 0:01:37]} Rh8 {[%emt 0:00:36]} 33. Rd2 {[%emt 0:06:46]} Be5 {[%emt 0:01:24]} 34. f3 {[%emt 0:05:20]} (34. d6 $11) 34... Rhd8 {[%emt 0:07:06]} (34... gxf3+ $17 35. Kxf3 Rg7) 35. fxg4+ $1 $11 {[%emt 0:02:03]} Kxg4 {[%emt 0:00:04]} 36. Rc4+ {[%emt 0:01:30]} Kf5 {[%emt 0:00:04]} 37. Bf4 {[%emt 0:01:44]} (37. Rf2+ $11 {remains equal.} Kg6 38. Bf4) 37... Rxd5 $17 {[%emt 0:01:53]} 38. Rf2 {[%emt 0:00:01]} c5 {[%emt 0:01:08]} 39. Bxe5+ {[%emt 0:01:11]} Kxe5 {[%emt 0:00:07][%mdl 4096] Endgame KRR-KRR} 40. Rcf4 {[%emt 0:00:36]} Rf8 {[%emt 0:00:12]} 41. g4 {[%emt 0:30:54]} Ke6 {[%emt 0:31:05]} (41... Rd4 $5 {[%cal Rd4f4]} 42. Rf5+ Ke6 $17) 42. R4f3 {[%emt 0:02:11]} Re5 {[%emt 0:03:46]} (42... Rg5 $17 43. Re3+ Kf7) 43. Rb3 $1 $11 {[%emt 0:00:32] The position is equal.} Rb8 {[%emt 0:00:00]} 44. Rbf3 {[%emt 0:00:00] Against f5} Rf8 {[%emt 0:04:00]} 45. Rb3 $1 {[%emt 0:00:00]} Kf7 {[%emt 0:00:47]} 46. Rxb6 {[%emt 0:00:00]} Kg6 {[%emt 0:00:04]} 47. Rf3 {[%emt 0:00:00]} Re4 {[%emt 0:00:51]} 48. Kg3 {[%emt 0:00:00]} Rb4 {[%emt 0:00:10]} 49. Rxb4 {[%emt 0:00:00]} axb4 {[%emt 0:00:07] KR-KR} 50. Rf5 {[%emt 0:00:00]} Ra8 {[%emt 0:00:24]} 51. Rxc5 {[%emt 0:00:00]} Rxa2 {[%emt 0:00:16]} 52. Rc2 {[%emt 0:00:00]} Kg5 {[%emt 0:00:09]} 53. Rc5+ {[%emt 0:00:00]} Kh6 {[%emt 0:00:05]} 54. Rc2 {[%emt 0:00:00]} Kg6 {[%emt 0:00:37]} 55. Kf3 {[%emt 0:00:00]} Kg5 {[%emt 0:00:11]} 56. Rh2 {[%emt 0:00:00]} Kg6 {[%emt 0:00:27]} 57. Rc2 {[%emt 0:00:00]} Kf7 {[%emt 0:00:50]} 58. Re2 {[%emt 0:00:00]} b3 {[%emt 0:00:56]} 59. Kg3 {[%emt 0:00:00]} Kg6 {[%emt 0:00:14]} 60. Rf2 {[%emt 0:00:00]} Ra4 {[%emt 0:01:21]} 61. Rf3 {[%emt 0:00:00]} Rb4 {[%emt 0:00:18]} 62. Rc3 {[%emt 0:00:00]} Kf7 {[%emt 0:00:07]} 63. Re3 {[%emt 0:00:00]} Kg6 {[%emt 0:00:18]} 64. Rf3 {[%emt 0:00:00]} Rb5 {[%emt 0:00:09]} 65. Kh4 {[%emt 0:00:00]} Rb7 {[%emt 0:00:30]} 66. Rc3 {[%emt 0:00:00]} Rb6 {[%emt 0:00:07]} 67. Rf3 {[%emt 0:00:00]} Rb5 {[%emt 0:00:05]} 68. Rc3 {[%emt 0:00:00]} Kf7 {[%emt 0:00:06]} 69. Re3 {[%emt 0:00:00]} Rb8 {[%emt 0:00:12]} 70. Kg3 {[%emt 0:00:00]} Kg6 {[%emt 0:00:05]} 71. Rf3 {[%emt 0:00:00]} Rb4 {[%emt 0:00:07]} 72. Kh3 {[%emt 0:00:00]} Rb5 {[%emt 0:00:52]} 73. Kh4 {[%emt 0:00:00]} Kf7 {[%emt 0:00:14]} 74. Re3 {[%emt 0:00:00]} Rb8 {[%emt 0:00:03]} 75. Kg3 {[%emt 0:00:00]} Rb4 {[%emt 0:00:05]} 76. Kh3 {[%emt 0:00:00]} Kg7 {[%emt 0:01:04]} 77. Rc3 {[%emt 0:00:00]} Kg6 {[%emt 0:02:37]} 78. Rf3 {[%emt 0:00:00] Weighted Error Value: White=0.10 (very precise) /Black=0.09 (flawless)} 1/2-1/2